bitfinex/quotes_BTCUSD_20230114
["timestamp","ask_amount","ask_price","bid_price","bid_amount"]
[1673656910989,0.06700335,21031.0,21015.0,0.19072595]
[1673656910990,0.22267384,21031.0,21015.0,0.19072595]
[1673656911239,0.2,21025.0,21022.0,0.19072595]
[1673656911508,0.02267384,21031.0,21023.0,0.19072595]
[1673656911742,0.02267384,21031.0,21024.0,0.19072595]
[1673656912004,0.02267384,21031.0,21025.0,0.19072595]
[1673656912005,1.33183476,21026.0,21025.0,0.19072595]
[1673656912287,0.19072595,21022.0,21000.0,0.89999999]
[1673656912507,0.19072595,21018.0,20972.0,0.05089547]
[1673656912739,0.5,21021.0,20985.0,0.49072595]
[1673656912740,0.18744415,21004.0,20985.0,0.49072595]
[1673656913000,0.18744415,21004.0,20972.0,0.05089547]
[1673656913001,0.91357891,20996.0,20994.0,0.001]
[1673656913243,0.91357891,20996.0,20972.0,0.04720526]
[1673656913244,0.49303295,20995.0,20986.0,0.16529158]
[1673656913484,0.49303295,20995.0,20984.0,0.2]
[1673656913485,0.49356241,20994.0,20972.0,0.24720526]
[1673656913743,0.18113565,20987.0,20972.0,0.18249684]
[1673656913990,0.19072595,20984.0,20972.0,0.01720526]
[1673656914239,0.19072595,20983.0,20972.0,0.01296752]
[1673656914491,0.2,21011.0,20981.0,0.6]
[1673656914742,0.77267384,21054.0,20994.0,0.19072595]
[1673656914743,0.93183476,21043.0,20994.0,0.19072595]
[1673656915000,0.93183476,21043.0,20982.0,0.31316524]
[1673656915001,0.73683476,21013.0,21007.0,0.18122595]
[1673656915232,0.302307,21012.0,21008.0,0.17338189]
[1673656915487,0.93683476,21025.0,21009.0,0.17338189]
[1673656915731,0.4,21000.0,20991.0,0.22632408]
[1673656915983,0.01786387,20995.0,20992.0,0.16939353]
[1673656916223,0.19015934,21000.0,20995.0,0.19223526]
[1673656916479,0.23775454,21036.0,21004.0,0.2]
[1673656916726,0.74613503,21050.0,21019.0,0.74216388]
[1673656916971,0.28733189,21049.0,21034.0,0.19072595]
[1673656917212,0.6,21059.0,21045.0,0.19072595]
[1673656917460,0.00093166,21059.0,21055.0,0.19072595]
[1673656917686,0.00093166,21059.0,21057.0,0.19072595]
[1673656917687,0.10321521,21058.0,21057.0,0.19072595]
[1673656917937,0.10321521,21058.0,21046.0,0.2943]
[1673656917938,0.27820887,21058.0,21046.0,0.2943]
[1673656918180,0.27820887,21058.0,21020.0,0.27421639]
[1673656918181,0.23290887,21047.0,21042.0,0.60559436]
[1673656918412,0.19072595,21046.0,21043.0,0.10372426]
[1673656918657,0.303307,21045.0,21043.0,0.10372426]
[1673656918894,0.099461,21044.0,21031.0,0.15414426]
[1673656919153,0.2,21069.0,21039.0,0.15414426]
[1673656919393,0.281152,21086.0,21050.0,0.19072595]
[1673656919394,0.15541084,21068.0,21050.0,0.19072595]
[1673656919646,0.65837374,21095.0,21058.0,0.19072595]
[1673656919930,1.00074412,21111.0,21081.0,0.19072595]
[1673656920172,1.00074412,21111.0,21059.0,0.2943]
[1673656920173,0.20055574,21097.0,21059.0,0.4943]
[1673656920400,2.29639666,21121.0,21059.0,0.4943]
[1673656920401,0.23678094,21096.0,21073.0,0.2]
[1673656920657,1.00074412,21118.0,21079.0,0.18103585]
[1673656920658,0.7443,21100.0,21079.0,0.18103585]
[1673656920908,0.7443,21100.0,21060.0,0.2]
[1673656920909,0.15028278,21098.0,21083.0,0.18122595]
[1673656921155,0.21409739,21112.0,21084.0,0.18242595]
[1673656921156,0.7443,21112.0,21084.0,0.18242595]
[1673656921402,0.1416417,21108.0,21088.0,0.19072595]
[1673656921661,0.26742188,21107.0,21092.0,0.19072595]
[1673656921901,0.3,21106.0,21093.0,0.19072595]
[1673656922166,0.74401,21103.0,21094.0,0.16572595]
[1673656922400,0.74401,21103.0,21078.0,0.2]
[1673656922401,0.39072595,21102.0,21095.0,0.14404881]
[1673656922663,0.73831,21096.0,21064.0,0.24023375]
[1673656922918,0.19072595,21083.0,21070.0,0.61169]
[1673656923168,0.18572595,21082.0,21065.0,0.1905]
[1673656923401,0.19072595,21081.0,21066.0,0.49950752]
[1673656923642,0.19072595,21080.0,21065.0,0.1905]
[1673656923895,0.19072595,21079.0,21066.0,0.28494871]
[1673656924144,0.17674416,21078.0,21068.0,0.4]
[1673656924391,0.23731171,21122.0,21078.0,0.01169]
[1673656924392,0.02335255,21122.0,21078.0,0.01169]
[1673656924618,0.3,21115.0,21096.0,0.19072595]
[1673656924880,0.3,21115.0,21069.0,0.2]
[1673656924881,0.2,21114.0,21106.0,0.18372595]
[1673656925125,0.2,21114.0,21097.0,0.2943]
[1673656925392,0.2,21105.0,21071.0,0.61169]
[1673656925642,0.49072595,21113.0,21080.0,0.2]
[1673656925643,0.18371999,21097.0,21080.0,0.2]
[1673656925882,0.16945841,21113.0,21085.0,0.19072595]
[1673656926125,0.16945841,21113.0,21076.0,0.2]
[1673656926126,1.02314398,21132.0,21096.0,0.19072595]
[1673656926378,1.02314398,21132.0,21092.0,0.2]
[1673656926379,0.00720402,21134.0,21107.0,0.19072595]
[1673656926643,0.10632255,21121.0,21120.0,0.19072595]
[1673656926873,0.23570402,21141.0,21120.0,0.79337784]
[1673656926874,0.17268291,21139.0,21120.0,0.79337784]
[1673656927118,0.3,21140.0,21127.0,0.18744415]
[1673656927358,0.1901,21141.0,21133.0,0.18547415]
[1673656927601,0.1901,21141.0,21135.0,0.18547415]
[1673656927852,0.3,21149.0,21136.0,0.18359515]
[1673656928119,0.241501,21150.0,21140.0,0.57448317]
[1673656928368,0.241501,21150.0,21124.0,0.77448317]
[1673656928369,0.019228,21140.0,21124.0,0.77448317]
[1673656928624,0.19072595,21139.0,21129.0,0.202338]
[1673656928865,0.19072595,21138.0,21125.0,0.2]
[1673656929109,0.19072595,21137.0,21125.0,0.57448317]
[1673656929356,0.19072595,21136.0,21108.0,0.56887158]
[1673656929601,0.00720402,21138.0,21134.0,0.56887158]
[1673656929844,0.02053731,21141.0,21135.0,0.18122595]
[1673656930083,0.02053731,21141.0,21113.0,0.51974197]
[1673656930084,0.02774133,21141.0,21113.0,0.51974197]
[1673656930329,0.00720402,21136.0,21109.0,0.2943]
[1673656930571,0.00720402,21136.0,21090.0,0.2]
[1673656930572,0.21262135,21132.0,21098.0,0.63105674]
[1673656930817,0.21662736,21116.0,21086.0,0.2943]
[1673656931066,0.19072595,21101.0,21097.0,0.009811]
[1673656931306,0.19072595,21100.0,21086.0,0.2943]
[1673656931552,0.19072595,21097.0,21086.0,0.2943]
[1673656931800,0.17862595,21096.0,21087.0,0.52595291]
[1673656932044,0.2,21128.0,21088.0,0.34744605]
[1673656932045,0.19072595,21095.0,21088.0,0.34744605]
[1673656932293,0.3,21116.0,21095.0,0.50993097]
[1673656932724,0.3,21116.0,21088.0,0.2793]
[1673656932725,0.23852856,21135.0,21115.0,0.20054081]
[1673656932728,0.19781848,21127.0,21115.0,0.20054081]
[1673656932993,0.00960955,21132.0,21126.0,0.20054081]
[1673656933260,0.49507762,21138.0,21129.0,0.18178845]
[1673656933501,0.3,21145.0,21118.0,0.2793]
[1673656933767,0.32960009,21140.0,21135.0,0.13828845]
[1673656934004,0.2,21144.0,21136.0,0.0249826]
[1673656934244,0.2,21144.0,21118.0,0.2793]
[1673656934245,0.2,21144.0,21124.0,0.57928432]
[1673656934490,0.57854846,21147.0,21125.0,0.56767053]
[1673656934491,0.19072595,21143.0,21125.0,0.56767053]
[1673656934731,0.02563324,21148.0,21132.0,0.2]
[1673656934732,0.16480042,21142.0,21132.0,0.2]
[1673656934986,0.15910041,21142.0,21133.0,0.0359549]
[1673656935224,0.19072595,21142.0,21134.0,0.05579865]
[1673656935474,0.19072595,21142.0,21125.0,0.2793]
[1673656935475,0.018966,21143.0,21135.0,0.03737134]
[1673656935714,0.02563324,21148.0,21131.0,0.53482517]
[1673656935946,0.19072595,21147.0,21132.0,0.5]
[1673656936178,0.19072595,21146.0,21132.0,0.79763424]
[1673656936432,0.18502595,21145.0,21129.0,0.12604392]
[1673656936663,0.19072595,21144.0,21128.0,0.2793]
[1673656936919,0.19072595,21143.0,21131.0,0.2793]
[1673656937166,0.31950112,21168.0,21133.0,0.2]
[1673656937423,0.19072595,21165.0,21147.0,0.16002595]
[1673656937698,0.2,21195.0,21154.0,0.16002595]
[1673656937930,0.00357405,21163.0,21138.0,0.2]
[1673656938176,0.00357405,21150.0,21139.0,0.2793]
[1673656938411,0.19072595,21149.0,21138.0,0.19279598]
[1673656938649,0.19072595,21148.0,21131.0,0.24]
[1673656938927,0.19072595,21148.0,21109.0,0.2]
[1673656938928,0.00357405,21137.0,21113.0,0.00381891]
[1673656939177,0.19072595,21125.0,21112.0,0.0761287]
[1673656939402,0.19072595,21119.0,21113.0,0.2943]
[1673656939638,0.18174415,21118.0,21114.0,0.185]
[1673656939872,0.16034416,21117.0,21113.0,0.2943]
[1673656940144,0.15534416,21116.0,21113.0,0.3021292]
[1673656940385,0.15034416,21115.0,21113.0,0.34019355]
[1673656940661,0.2,21147.0,21114.0,0.85384835]
[1673656940899,0.00116405,21136.0,21122.0,0.19072595]
[1673656941137,0.20336343,21145.0,21123.0,0.19072595]
[1673656941388,0.85,21155.0,21127.0,0.19072595]
[1673656941389,0.15007107,21144.0,21127.0,0.19072595]
[1673656941613,0.14054918,21143.0,21128.0,0.19072595]
[1673656941843,0.49072595,21142.0,21124.0,0.03632788]
[1673656942081,0.28298406,21156.0,21127.0,0.03632788]
[1673656942326,0.28298406,21156.0,21124.0,0.00768624]
[1673656942327,0.018959,21143.0,21129.0,0.68549772]
[1673656942609,0.23661015,21159.0,21131.0,0.2]
[1673656942850,0.6,21163.0,21132.0,0.25657803]
[1673656943078,0.2,21169.0,21117.0,0.8]
[1673656943079,0.2,21169.0,21131.0,0.43122003]
[1673656943345,0.2,21171.0,21132.0,0.3]
[1673656943573,0.2,21171.0,21133.0,0.521484]
[1673656943808,0.2,21171.0,21117.0,0.673537]
[1673656943809,0.19792997,21168.0,21123.0,0.6]
[1673656944084,0.19072595,21159.0,21129.0,0.19279598]
[1673656944310,0.19072595,21157.0,21152.0,0.20902446]
[1673656944542,0.19072595,21169.0,21141.0,0.20902446]
[1673656944784,0.3,21168.0,21143.0,0.20902446]
[1673656945020,0.00214874,21151.0,21144.0,0.3]
[1673656945316,0.75,21182.0,21131.0,0.2]
[1673656945317,0.39097554,21186.0,21150.0,0.20902446]
[1673656945569,0.3,21185.0,21165.0,0.20902446]
[1673656945793,0.5,21187.0,21157.0,0.14733829]
[1673656946028,0.325104,21186.0,21158.0,0.29944993]
[1673656946273,0.325104,21186.0,21152.0,0.2]
[1673656946274,0.3,21189.0,21166.0,0.14733829]
[1673656946510,0.3,21189.0,21154.0,0.2]
[1673656946748,0.025104,21188.0,21155.0,0.51868504]
[1673656947008,0.19072595,21185.0,21155.0,0.2943]
[1673656947236,0.5,21189.0,21155.0,0.2943]
[1673656947237,0.19072595,21182.0,21155.0,0.2943]
[1673656947481,0.19072595,21180.0,21156.0,0.2]
[1673656947787,0.47232266,21179.0,21157.0,0.04080136]
[1673656948017,0.47232266,21179.0,21154.0,0.2]
[1673656948018,0.51582995,21178.0,21158.0,0.06216092]
[1673656948278,0.10147003,21177.0,21159.0,0.06216092]
[1673656948489,0.02870744,21190.0,21160.0,0.39072595]
[1673656948721,0.05836171,21189.0,21166.0,0.13236424]
[1673656948997,0.04876843,21188.0,21169.0,0.19072595]
[1673656949213,0.01627593,21190.0,21170.0,0.19072595]
[1673656949447,1.3259,21207.0,21160.0,0.2]
[1673656949448,0.04679843,21189.0,21172.0,0.2]
[1673656949686,0.02627327,21177.0,21173.0,0.11592493]
[1673656949933,0.02627327,21177.0,21173.0,0.11473493]
[1673656950182,0.11906271,21177.0,21174.0,0.320991]
[1673656950409,0.2,21197.0,21160.0,0.20936106]
[1673656950410,0.2,21197.0,21171.0,0.2]
[1673656950645,0.09278944,21196.0,21176.0,0.19072595]
[1673656950892,0.01352313,21195.0,21179.0,0.2]
[1673656951127,0.11197301,21194.0,21186.0,0.19072595]
[1673656951443,0.2,21214.0,21187.0,0.19072595]
[1673656951669,0.2,21214.0,21188.0,0.24627273]
[1673656951670,0.3,21213.0,21188.0,0.24627273]
[1673656951916,0.11197301,21212.0,21193.0,0.19072595]
[1673656952214,0.24413034,21223.0,21196.0,0.2]
[1673656952433,0.3,21222.0,21203.0,0.19072595]
[1673656952667,0.3,21222.0,21173.0,0.2]
[1673656952668,0.19072595,21221.0,21205.0,0.18744416]
[1673656952910,0.02498,21220.0,21206.0,0.3]
[1673656953151,0.19072595,21219.0,21183.0,0.2]
[1673656953382,0.19072595,21210.0,21183.0,0.2]
[1673656953637,0.19072595,21205.0,21183.0,0.2]
[1673656953866,0.18668156,21204.0,21184.0,0.620757]
[1673656954122,0.2,21243.0,21183.0,0.20950692]
[1673656954123,0.19072595,21203.0,21185.0,0.3]
[1673656954348,0.2,21243.0,21187.0,0.23963176]
[1673656954610,0.501501,21250.0,21186.0,0.39072595]
[1673656954611,0.19072595,21238.0,21212.0,0.18508346]
[1673656954833,0.3,21237.0,21225.0,0.13321002]
[1673656955075,0.02712901,21227.0,21195.0,0.6]
[1673656955316,0.0352,21226.0,21193.0,0.6]
[1673656955549,0.02712901,21227.0,21194.0,0.820777]
[1673656955550,0.3,21225.0,21194.0,0.820777]
[1673656955786,0.19072595,21221.0,21195.0,0.6]
[1673656956084,0.492101,21250.0,21199.0,0.23622023]
[1673656956314,0.492101,21250.0,21195.0,0.471808]
[1673656956315,0.492101,21250.0,21224.0,0.19072595]
[1673656956556,0.479701,21250.0,21237.0,0.17244415]
[1673656956795,0.479701,21250.0,21238.0,0.10927405]
[1673656957078,0.479701,21250.0,21237.0,0.17244415]
[1673656957326,0.14906878,21249.0,21240.0,0.17244416]
[1673656957549,1.3042,21288.0,21281.0,0.25491706]
[1673656957786,0.00446161,21281.0,21238.0,0.2]
[1673656958043,0.16802401,21273.0,21251.0,0.16428416]
[1673656958296,0.19072595,21273.0,21252.0,0.22328148]
[1673656958541,0.49072595,21272.0,21240.0,11.975]
[1673656958770,0.41025346,21259.0,21238.0,0.2]
[1673656959007,0.3,21264.0,21238.0,0.1785]
[1673656959240,0.3,21272.0,21245.0,0.18974654]
[1673656959481,0.19072595,21271.0,21246.0,0.142361]
[1673656959757,0.19072595,21270.0,21241.0,0.23487604]
[1673656960000,0.93304601,21335.0,21248.0,0.17614656]
[1673656960227,0.93304601,21335.0,21242.0,0.3]
[1673656960228,0.6,21312.0,21301.0,0.19072595]
[1673656960488,0.08612004,21334.0,21249.0,1.0]
[1673656960489,0.21601779,21332.0,21249.0,1.0]
[1673656960719,0.19072595,21284.0,21250.0,2.0]
[1673656960956,0.19072595,21269.0,21251.0,0.13259856]
[1673656961192,0.520536,21283.0,21245.0,0.20922778]
[1673656961193,0.19072595,21262.0,21245.0,0.20922778]
[1673656961446,0.05484559,21253.0,21246.0,0.00402278]
[1673656961676,0.17870606,21266.0,21249.0,6e-05]
[1673656961913,0.17870606,21266.0,21242.0,0.14408278]
[1673656962162,0.21474289,21292.0,21242.0,0.14408278]
[1673656962163,0.05484559,21261.0,21250.0,0.2]
[1673656962391,0.05157186,21261.0,21250.0,0.1905]
[1673656962627,0.0240337,21260.0,21244.0,0.1]
[1673656962863,0.025,21266.0,21240.0,0.2]
[1673656962864,0.59077222,21255.0,21240.0,0.2]
[1673656963165,0.12403371,21252.0,21230.0,0.21428509]
[1673656963414,0.12403371,21252.0,21207.0,2.79352665]
[1673656963415,0.03740337,21251.0,21207.0,2.79352665]
[1673656963644,0.195,21240.0,21208.0,0.27237921]
[1673656963892,0.6,21236.0,21208.0,0.07237921]
[1673656964121,0.025,21243.0,21208.0,0.07237921]
[1673656964122,0.6,21220.0,21208.0,0.19072595]
[1673656964395,0.6,21220.0,21151.0,0.472769]
[1673656964396,0.19072595,21211.0,21159.0,0.23748156]
[1673656964632,0.0045,21224.0,21163.0,0.23598104]
[1673656964633,0.19072595,21175.0,21163.0,0.23598104]
[1673656964865,0.220536,21174.0,21163.0,0.23598104]
[1673656965118,0.76544551,21234.0,21165.0,0.6]
[1673656965350,1.0242241,21229.0,21225.0,0.508223]
[1673656965599,1.0242241,21229.0,21164.0,1.17213335]
[1673656965600,0.37460735,21222.0,21183.0,0.3]
[1673656965830,0.24072595,21214.0,21178.0,0.39819176]
[1673656966143,0.19072595,21204.0,21179.0,0.3]
[1673656966369,0.19072595,21198.0,21163.0,0.05187]
[1673656966607,0.19072595,21184.0,21164.0,0.3]
[1673656966854,0.05187,21198.0,21158.0,0.15959723]
[1673656966855,0.19072595,21181.0,21174.0,0.6]
[1673656967106,0.29323477,21213.0,21175.0,0.15]
[1673656967333,0.29323477,21213.0,21166.0,0.2]
[1673656967334,0.37767947,21217.0,21207.0,0.09515271]
[1673656967597,0.2,21219.0,21199.0,0.08565271]
[1673656967835,0.2,21213.0,21179.0,0.3]
[1673656968072,0.2,21213.0,21180.0,0.3]
[1673656968315,0.2,21213.0,21164.0,0.88109216]
[1673656968316,0.19072595,21208.0,21164.0,0.88109216]
[1673656968561,0.19072595,21195.0,21165.0,0.45]
[1673656968813,0.19072595,21195.0,21164.0,0.2943]
[1673656968814,0.19072595,21187.0,21179.0,0.6]
[1673656969054,0.2,21203.0,21179.0,0.6]
[1673656969055,0.2,21203.0,21184.0,0.6]
[1673656969290,0.41130655,21226.0,21189.0,0.75]
[1673656969526,0.25205,21222.0,21201.0,0.19072595]
[1673656969780,0.25205,21222.0,21187.0,0.9]
[1673656969781,0.19072595,21218.0,21204.0,0.18744415]
[1673656970030,0.47932595,21217.0,21181.0,0.0012]
[1673656970264,0.05239,21194.0,21181.0,0.0012]
[1673656970498,0.05239,21194.0,21170.0,0.75]
[1673656970499,0.14520495,21193.0,21173.0,0.75]
[1673656970804,0.19072595,21189.0,21180.0,0.2]
[1673656971037,0.13887203,21188.0,21187.0,0.2]
[1673656971289,0.25983078,21197.0,21187.0,0.2]
[1673656971517,0.13887203,21197.0,21188.0,0.19072595]
[1673656971754,0.2,21217.0,21189.0,0.20979855]
[1673656972000,0.3,21216.0,21189.0,0.0190726]
[1673656972233,0.2,21217.0,21190.0,0.0045]
[1673656972470,0.2,21217.0,21198.0,0.18744416]
[1673656972471,0.49072595,21216.0,21198.0,0.18744416]
[1673656972725,0.49072595,21215.0,21200.0,0.10643434]
[1673656972957,0.02740818,21227.0,21201.0,0.09476539]
[1673656973223,0.21240337,21251.0,21201.0,0.09476539]
[1673656973224,0.21898875,21250.0,21202.0,1.1152254]
[1673656973462,0.00868776,21231.0,21203.0,0.5582754]
[1673656973696,0.04370587,21230.0,21212.0,0.06084579]
[1673656973942,0.1558166,21244.0,21217.0,0.15432571]
[1673656974175,7e-08,21259.0,21225.0,0.47114]
[1673656974431,0.25856524,21290.0,21283.0,1.0863692]
[1673656974722,0.1558166,21288.0,21284.0,0.61464712]
[1673656974949,0.21063794,21296.0,21248.0,0.0441834]
[1673656975210,0.19072595,21291.0,21253.0,0.0397174]
[1673656975447,0.05277,21321.0,21288.0,0.19072595]
[1673656975701,3.04254078,21334.0,21293.0,0.84008355]
[1673656975930,3.04254078,21334.0,21294.0,0.0085]
[1673656975931,0.2,21299.0,21294.0,0.0085]
[1673656976170,0.2,21299.0,21255.0,0.3]
[1673656976405,0.00062882,21295.0,21284.0,0.57539764]
[1673656976670,2.24217463,21334.0,21322.0,0.10129834]
[1673656976915,2.24217463,21334.0,21256.0,1.33092701]
[1673656976916,0.2262877,21326.0,21293.0,0.3]
[1673656977154,0.18256428,21294.0,21283.0,0.13112366]
[1673656977397,0.3,21301.0,21291.0,0.51358173]
[1673656977626,0.03289419,21337.0,21291.0,0.06013057]
[1673656977864,0.2,21333.0,21294.0,0.1973288]
[1673656978096,0.3,21332.0,21306.0,0.19072595]
[1673656978381,0.3,21332.0,21298.0,0.06013057]
[1673656978382,0.12306272,21324.0,21308.0,0.18744415]
[1673656978626,0.18400775,21323.0,21282.0,0.38005104]
[1673656978875,0.19072595,21309.0,21282.0,0.33005104]
[1673656979103,0.00120997,21297.0,21293.0,0.47693728]
[1673656979343,0.02407595,21296.0,21284.0,0.25063057]
[1673656979589,0.02407596,21292.0,21284.0,0.1905]
[1673656979834,0.02407596,21291.0,21284.0,0.1905]
[1673656980070,0.3,21307.0,21271.0,0.2]
[1673656980071,0.02407596,21290.0,21271.0,0.2]
[1673656980314,0.02407596,21281.0,21276.0,0.47693728]
[1673656980566,0.02407596,21280.0,21273.0,0.18203828]
[1673656980801,0.02737775,21299.0,21279.0,0.18203828]
[1673656981037,0.02737775,21299.0,21281.0,0.02407596]
[1673656981293,0.02737775,21299.0,21275.0,0.22536158]
[1673656981540,0.02407596,21290.0,21282.0,2.0]
[1673656981770,0.02407596,21298.0,21283.0,0.19072595]
[1673656982015,0.02407596,21298.0,21274.0,0.35658125]
[1673656982016,0.02407596,21298.0,21274.0,0.59725946]
[1673656982251,0.18072595,21294.0,21275.0,0.16336821]
[1673656982488,0.41796172,21315.0,21275.0,0.16336821]
[1673656982489,0.41796172,21300.0,21283.0,0.34117037]
[1673656982724,0.75,21307.0,21282.0,0.2]
[1673656982985,0.3,21306.0,21277.0,0.3]
[1673656983218,0.01472427,21305.0,21286.0,0.19072595]
[1673656983514,0.2,21303.0,21292.0,0.19072595]
[1673656983742,0.2,21303.0,21285.0,0.2]
[1673656983743,0.19515116,21303.0,21293.0,0.19072595]
[1673656984004,0.03289419,21337.0,21300.0,0.3]
[1673656984235,0.54006471,21336.0,21319.0,0.05364754]
[1673656984499,0.54006471,21336.0,21294.0,0.25617134]
[1673656984500,0.50177466,21327.0,21326.0,0.19072595]
[1673656984754,0.055981,21350.0,21294.0,0.25617134]
[1673656984755,0.19072595,21326.0,21311.0,0.32573982]
[1673656984982,0.19072595,21325.0,21312.0,0.18744415]
[1673656985217,0.19072595,21324.0,21302.0,0.3]
[1673656985465,0.19072595,21324.0,21294.0,0.2]
[1673656985466,0.19072595,21323.0,21289.0,0.05322]
[1673656985712,0.19072595,21323.0,21297.0,0.97602207]
[1673656985956,0.19072595,21323.0,21303.0,0.97602207]
[1673656985957,0.19072595,21322.0,21303.0,0.97602207]
[1673656986209,0.19072,21326.0,21305.0,0.22235817]
[1673656986210,0.19,21315.0,21305.0,0.22235817]
[1673656986456,0.19072595,21314.0,21304.0,0.2]
[1673656986734,0.19072595,21293.0,21277.0,0.3817786]
[1673656986976,0.19072595,21293.0,21263.0,0.74280067]
[1673656987221,0.3,21292.0,21267.0,0.22235817]
[1673656987456,0.05512158,21282.0,21267.0,0.18757017]
[1673656987708,0.04327736,21275.0,21256.0,0.2]
[1673656987974,0.04327737,21268.0,21264.0,0.2]
[1673656988202,0.5684999,21286.0,21256.0,0.14448665]
[1673656988203,0.3,21283.0,21256.0,0.14448665]
[1673656988477,0.82588103,21291.0,21257.0,0.19072595]
[1673656988704,0.05156283,21288.0,21265.0,0.19072595]
[1673656988944,0.21666932,21329.0,21256.0,0.00960588]
[1673656988945,0.2,21285.0,21269.0,0.53728473]
[1673656989192,0.2,21285.0,21279.0,0.53728473]
[1673656989193,0.2,21282.0,21279.0,0.53728473]
[1673656989426,0.2,21282.0,21258.0,0.33308529]
[1673656989427,0.2,21282.0,21271.0,0.2905]
[1673656989704,0.05582232,21281.0,21270.0,0.2]
[1673656989940,0.05582232,21280.0,21264.0,0.28679606]
[1673656990181,0.46966395,21279.0,21247.0,0.25678571]
[1673656990423,0.19072595,21267.0,21248.0,0.15263599]
[1673656990667,2.0,21250.0,21237.0,0.3]
[1673656990903,0.19072595,21242.0,21240.0,0.25126982]
[1673656991164,0.19072595,21241.0,21232.0,0.00928094]
[1673656991386,0.18572595,21239.0,21224.0,0.2940751]
[1673656991620,0.19072595,21235.0,21224.0,0.2]
[1673656991913,0.19072595,21234.0,21231.0,0.24024773]
[1673656992155,0.19072595,21234.0,21233.0,0.24024773]
[1673656992424,0.00547021,21233.0,21229.0,0.26420268]
[1673656992651,0.00547021,21233.0,21229.0,0.02843001]
[1673656992889,0.2,21249.0,21229.0,0.02843001]
[1673656992890,0.05226,21245.0,21232.0,0.6]
[1673656993126,0.21063794,21296.0,21288.0,0.60998635]
[1673656993398,0.02382999,21296.0,21290.0,0.46574285]
[1673656993631,0.02382999,21296.0,21292.0,1.82610174]
[1673656993632,0.02647182,21296.0,21292.0,1.82610174]
[1673656993869,0.02647182,21296.0,21293.0,1.48263159]
[1673656993870,0.62647182,21296.0,21293.0,1.48263159]
[1673656994105,0.87827174,21296.0,21295.0,1.05635159]
[1673656994353,0.82827174,21296.0,21267.0,0.28854297]
[1673656994611,0.08021725,21299.0,21248.0,0.75]
[1673656994612,3.42814385,21250.0,21248.0,0.75]
[1673656994840,2.50630861,21250.0,21249.0,0.8]
[1673656995069,2.50630861,21250.0,21249.0,1.28704192]
[1673656995302,2.50630861,21250.0,21246.0,0.6]
[1673656995303,2.50630861,21250.0,21238.0,0.6]
[1673656995538,2.50630861,21250.0,21236.0,0.6]
[1673656995775,2.50630861,21250.0,21234.0,0.3]
[1673656995776,1.84026735,21250.0,21234.0,0.3]
[1673656996049,0.2,21249.0,21235.0,0.79072595]
[1673656996284,0.19072595,21248.0,21239.0,0.79072595]
[1673656996520,0.62795725,21299.0,21292.0,0.13592999]
[1673656996771,0.62795725,21299.0,21237.0,0.05219]
[1673656996772,0.10395055,21300.0,21293.0,1.05160999]
[1673656997011,0.10395055,21300.0,21247.0,0.5]
[1673656997012,0.2,21305.0,21296.0,1.05160999]
[1673656997250,0.05261,21307.0,21305.0,0.42532999]
[1673656997487,0.25698576,21303.0,21258.0,0.14761]
[1673656997722,0.19072595,21286.0,21259.0,0.3]
[1673656997959,0.19072595,21278.0,21260.0,0.4]
[1673656998219,0.19072595,21273.0,21259.0,0.29304708]
[1673656998458,0.19072595,21273.0,21247.0,0.1905]
[1673656998459,0.19072595,21265.0,21248.0,0.3]
[1673656998700,0.19072595,21265.0,21258.0,0.24]
[1673656998701,0.19072595,21262.0,21258.0,0.24]
[1673656998937,0.19072595,21261.0,21258.0,0.24]
[1673656999174,0.18832579,21260.0,21258.0,0.24]
[1673656999397,0.18832579,21260.0,21258.0,0.04]
[1673656999398,0.19072595,21260.0,21258.0,0.04]
[1673656999873,0.05243,21263.0,21258.0,0.04]
[1673657000105,0.19072595,21262.0,21253.0,0.3]
[1673657000340,0.18572595,21261.0,21239.0,0.05243]
[1673657000574,0.19072595,21259.0,21243.0,0.04756989]
[1673657000814,0.19072595,21258.0,21244.0,0.3]
[1673657001045,0.02039051,21250.0,21245.0,0.05326988]
[1673657001280,0.19072595,21249.0,21233.0,0.66201015]
[1673657001510,0.19072595,21248.0,21234.0,0.3]
[1673657001748,0.19072595,21247.0,21235.0,0.6]
[1673657002008,0.19072595,21246.0,21236.0,0.28643951]
[1673657002249,0.19072595,21245.0,21237.0,0.3]
[1673657002554,0.26359051,21258.0,21243.0,0.520579]
[1673657002795,0.0007,21260.0,21244.0,0.42141989]
[1673657003066,0.19072595,21260.0,21246.0,0.12154605]
[1673657003306,0.19072595,21259.0,21247.0,0.16839606]
[1673657003554,0.01708389,21269.0,21251.0,0.16839606]
[1673657003814,0.06906748,21314.0,21265.0,0.16839606]
[1673657004045,0.15943445,21313.0,21307.0,0.16839606]
[1673657004275,0.58160394,21339.0,21337.0,0.233868]
[1673657004537,0.58160394,21341.0,21339.0,0.44819632]
[1673657004768,0.02040173,21296.0,21267.0,9.0]
[1673657005006,0.02040173,21296.0,21277.0,0.05515]
[1673657005243,0.02040173,21296.0,21267.0,9.0]
[1673657005244,0.02453132,21282.0,21278.0,0.3]
[1673657005473,0.02040173,21296.0,21281.0,0.76839606]
[1673657005729,0.19072595,21295.0,21278.0,0.76839606]
[1673657005973,0.2,21290.0,21278.0,0.6]
[1673657006227,0.19072595,21289.0,21272.0,0.6]
[1673657006479,0.19072595,21286.0,21252.0,0.25522]
[1673657006703,0.19072595,21275.0,21261.0,0.6]
[1673657006952,0.19072595,21274.0,21269.0,0.2]
[1673657007191,0.57640511,21289.0,21264.0,0.3]
[1673657007445,0.19072595,21286.0,21275.0,0.585]
[1673657007675,0.19072595,21285.0,21267.0,0.3]
[1673657007924,0.19072595,21284.0,21268.0,0.2]
[1673657008168,0.19072595,21283.0,21269.0,0.3]
[1673657008409,0.18744416,21282.0,21270.0,0.39072595]
[1673657008641,0.18744416,21281.0,21265.0,0.17863152]
[1673657009121,0.18744416,21277.0,21266.0,0.3]
[1673657009125,0.18744416,21277.0,21266.0,0.47924197]
[1673657009363,0.18744416,21276.0,21255.0,0.3]
[1673657009612,0.18744416,21272.0,21256.0,0.19072595]
[1673657009866,0.18744416,21269.0,21257.0,0.18122594]